Cogmind - Beta 16 @@@ ROGUE MODE // 2025.11.03 @ 01:29:51 Player: pappous Result: Destroyed by 98-AE2(R) with Subdweller Machine Gun Performance ------------- Evolutions (0) 0 Regions Visited (2) 400 Robots Destroyed (17) 85 Value Destroyed (472) 472 Prototype IDs (0) 0 Alien Tech Used (0) 0 Bonus (0) 0 TOTAL SCORE: 957 Bonus ------- None Cogmind --------- Core Integrity 0/250 Matter 201/300 Energy 100/100 System Corruption 0% Temperature Cool (0) Movement Core (1400) Ox27 Location -10/Subcaves Parts ------- > --- POWER (1) -------- (None) > --- PROPULSION (2) --- (None) > --- UTILITY (2) ------ Huge Storage Unit Signal Interpreter > --- WEAPON (2) ------- Light Assault Rifle Mining Claw > --- INVENTORY (25) --- Subdweller Power Source Improved Heat Sink Large Storage Unit Subdweller Optics Sensor Array Targeting Computer Targeting Computer Targeting Computer Grenade Launcher Datajack Scrap Shield Fragment (47) Scrap Shield Fragment (46) Peak State ------------ > --- POWER ------------ Light Ion Engine > --- PROPULSION ------- Light Treads Wheel > --- UTILITY ---------- Improved Heat Sink Huge Storage Unit > --- WEAPON ----------- Particle Gun Light Assault Rifle > --- INVENTORY -------- Ion Engine Light Treads Wheel Sensor Array Signal Interpreter Targeting Computer Targeting Computer Assault Rifle Datajack Mining Claw [Rating: 11] Favorites ----------- Power Light Ion Engine Engine Light Ion Engine Propulsion Light Treads Treads Light Treads Wheel Wheel Utility Huge Storage Unit Device Improved Heat Sink Storage Huge Storage Unit Processor Signal Interpreter Weapon Light Assault Rifle Energy Gun Particle Gun Ballistic Gun Light Assault Rifle Launcher Grenade Launcher Slashing Weapon Mining Claw Build | -11 -10 -10 ------- Run | Yrd Mat Sub Slots Evolved . | . . . Power . | . . . Propulsion . | . . . Utility . | . . . Weapon . | . . . Parts Attached 19 | 6 5 8 Power 4 | 1 1 2 Engine 4 | 1 1 2 Core . | . . . Reactor . | . . . Propulsion 4 | 2 . 2 Treads 2 | 1 . 1 Leg . | . . . Wheel 2 | 1 . 1 Hover . | . . . Flight . | . . . Utility 4 | 1 2 1 Device 1 | . 1 . Storage 2 | 1 1 . Processor 1 | . . 1 Hackware . | . . . Protection . | . . . Artifact . | . . . Weapon 7 | 2 2 3 Energy Gun 1 | . 1 . Energy Cannon . | . . . Ballistic Gun 4 | 2 . 2 Ballistic Cannon . | . . . Launcher 1 | . . 1 Special Weapon . | . . . Impact Weapon . | . . . Slashing Weapon 1 | . 1 . Piercing Weapon . | . . . Special Melee Weapon . | . . . Unidentified Prototypes . | . . . Parts Lost 10 | . 1 9 Power 3 | . 1 2 Propulsion 4 | . . 4 Utility . | . . . Weapon 3 | . . 3 Highest Loss Streak 3 | . 1 3 To Critical Strikes . | . . . Average Backups 10 | 2 10 12 Power 1 | . 1 1 Propulsion 1 | 1 2 . Utility 4 | . 3 6 Weapon 2 | . 2 2 Tool/Special . | . . . Unused Backups 8 | . . 8 Power 1 | . . 1 Propulsion . | . . . Utility 6 | . . 6 Weapon . | . . . Tool/Special 1 | . . 1 Average Slot Usage (%) 91 | . 94 88 Engine 13 | . 14 12 Treads 13 | . 14 12 Wheel 11 | . 14 8 Device 7 | . 8 6 Storage 14 | . 14 14 Processor 4 | . . 7 Energy Gun 7 | . 8 5 Ballistic Gun 17 | . 18 17 Peak Build Rating 11 | 6 11 11 Average Rating 8 | 5 9 8 On Entrance 5 | . 6 11 Avg Prop Armor Cover (%) 11 | 5 10 12 Naked Turns . | . . . Heaviest Build 90 | 10 88 90 Greatest Support 20 | 20 20 20 Greatest Overweight (x) 8 | . 8 8 Average Overweight (x) 5 | . 4 7 Largest Inventory Capacity 25 | 8 25 25 Average Capacity 21 | 6 18 25 Most Carried 16 | 4 15 16 Average Carried 11 | 2 10 13 Final Capacity 25 | 8 25 25 Final Carried 15 | 4 15 12 Class Distribution -------------------- 100% | Mutant Dominant Class ---------------- Mutant | -10/Materials Mutant | -10/Subcaves Resources | -11 -10 -10 ----------- Run | Yrd Mat Sub Matter Collected 504 | 77 284 143 Remotely . | . . . Salvage Created 527 | . 305 222 Parts 36 | . 22 14 Haulers Intercepted . | . . . Recyclers Shooed 3 | . 3 . Parts Field Recycled . | . . . Retrieved Matter . | . . . Parts Self-Destructed 18 | . . 18 Prevented . | . . . Parts Restored . | . . . Kills | -11 -10 -10 ------- Run | Yrd Mat Sub Combat Hostiles Destroyed 15 | . 9 6 Guns 13 | . 9 4 AOE 2 | . . 2 Classes Destroyed 5 | . 2 3 Turret 2 | . . 2 Swarmer 6 | . 3 3 Grunt 6 | . 6 . Sentry 1 | . . 1 Subdweller 2 | . . 2 Best Kill Streak 3 | . 3 3 Combat Bots Only 3 | . 3 3 Max Kills in Single Turn 2 | . 1 2 Gunslinging . | . . . Exploded 2 | . . 2 Melee . | . . . Uniques/NPCs Destroyed . | . . . Combat | -11 -10 -10 -------- Run | Yrd Mat Sub Hostile Shots Fired 245 | . 41 204 Missed 90 | . 8 82 Hits 155 | . 33 122 Projectile 155 | . 33 122 Critical Strikes 1 | . . 1 Damage Taken 1378 | . 346 1032 Core 267 | . 83 184 Absorbed by Shields . | . . . Core Remaining (%) 100 | 100 . . Volleys Fired 69 | . 26 43 Largest 2 | . 2 2 Hottest 85 | . 85 85 Shots Fired 129 | . 52 77 Gun 123 | . 52 71 Cannon . | . . . Launcher 6 | . . 6 Special . | . . . Kinetic 96 | . 46 50 Thermal 27 | . 6 21 Explosive 6 | . . 6 Electromagnetic . | . . . Robot Hit Streak 12 | . 9 12 Robot Miss Streak 6 | . 6 5 Penetration Max . | . . . Secondary Targets 2 | . 1 1 Max Gunslinging Chain 1 | . 1 1 Shots Hit Robots 83 | . 35 48 Core Hits 38 | . 21 17 Critical Kills . | . . . Critical Parts Destroyed . | . . . Critical Strikes . | . . . Melee Attacks 3 | . 1 2 Impact . | . . . Slashing 3 | . 1 2 Piercing . | . . . Sneak Attacks . | . . . Combat Hostiles . | . . . Follow-up Attacks . | . . . Damage Inflicted 975 | . 298 677 Guns 835 | . 298 537 Cannons . | . . . Explosions 92 | . . 92 Melee 48 | . . 48 Ramming . | . . . Kinetic 592 | . 255 337 Thermal 243 | . 43 200 Explosive 92 | . . 92 Electromagnetic . | . . . Impact . | . . . Slashing 48 | . . 48 Piercing . | . . . Highest Corruption . | . . . Average Corruption . | . . . Corruption Purged . | . . . Corruption Blocked . | . . . Overload Shots . | . . . Overflow Damage . | . . . Projectiles . | . . . Explosions . | . . . Melee . | . . . Knockbacks . | . . . Impact . | . . . Kinetic . | . . . Secondary . | . . . Self-Inflicted Damage 53 | . . 53 Shots 2 | . . 2 Rammed . | . . . Targets Rammed . | . . . Kicked . | . . . Crushed . | . . . Highest Temperature 22 | . 22 . Average Temperature 9 | . 9 . Received Heat Transfer 516 | . 138 378 Siege Activations . | . . . Martial Activations . | . . . Shielding Activations . | . . . Robots Disrupted . | . . . Combat Hostiles . | . . . Robots Corrupted . | . . . Combat Hostiles . | . . . Parts Fried . | . . . Impact Corruptions . | . . . Robots Melted . | . . . Combat Hostiles . | . . . Parts Melted . | . . . Heat Transferred 592 | . 111 481 Parts Sabotaged . | . . . Parts Stolen . | . . . Parts Stripped . | . . . Power Chain Reactions . | . . . Alert | -11 -10 -10 ------- Run | Yrd Mat Sub Maximum Alert Level . | . . . Low Security (%) 100 | 100 100 . Level 1 . | . . . Level 2 . | . . . Level 3 . | . . . Level 4 . | . . . Level 5 . | . . . High Security . | . . . Max Security . | . . . Peak Influence 85 | . 85 . Initial . | . . . Average 17 | . 18 . Influence Increases 485 | . 275 210 Destroy 0b10 Robot/C 300 | . 180 120 Destroy Leader 50 | . 50 . Disable Machine 15 | . 15 . Lose Combat Pursuer 120 | . 30 90 Influence Decreases 485 | . 275 210 Time Decay 435 | . 265 170 Lost Part 50 | . 10 40 Squads Dispatched 3 | . 3 . Investigation 1 | . 1 . Extermination . | . . . Reinforcement 2 | . 2 . Assault . | . . . Garrison . | . . . Intercept . | . . . Searches Triggered . | . . . Construction Impeded . | . . . Haulers Reinforced . | . . . Active Scanning Responses . | . . . Cargo Convoy Interrupts . | . . . Stealth | -11 -10 -10 --------- Run | Yrd Mat Sub Distress Signals 2 | . 2 . Communications Jammed . | . . . Distress Signals . | . . . Times Spotted 34 | . 21 13 Peak Tracking Total 4 | . 4 4 Tactical Retreats 4 | . 2 2 Traps | -11 -10 -10 ------- Run | Yrd Mat Sub Traps Triggered 1 | . 1 . Indirectly . | . . . Trap Hack Attempts . | . . . Triggered . | . . . Disarmed . | . . . Reprogrammed . | . . . Reused . | . . . Traps Extracted . | . . . Installed . | . . . Triggered . | . . . Machines | -11 -10 -10 ---------- Run | Yrd Mat Sub Machines Disabled 2 | . 1 1 Max in Single Turn 1 | . 1 1 Machines Repaired . | . . . Machines Dismantled . | . . . Machines Sabotaged . | . . . Overloaded Fab Kills . | . . . Hacking | -11 -10 -10 --------- Run | Yrd Mat Sub Machines Accessed . | . . . Terminals . | . . . Fabricators . | . . . Repair Stations . | . . . Recycling Units . | . . . Scanalyzers . | . . . Garrison Access . | . . . Total Hacks . | . . . Successful . | . . . Failed . | . . . Catastrophic . | . . . Database Lockouts . | . . . Manual . | . . . Terminals . | . . . Fabricators . | . . . Repair Stations . | . . . Recycling Units . | . . . Scanalyzers . | . . . Garrison Access . | . . . Terminal Hacks . | . . . Fabricator Hacks . | . . . Repair Station Hacks . | . . . Recycling Unit Hacks . | . . . Scanalyzer . | . . . Garrison Access Hacks . | . . . Unauthorized Hacks . | . . . Terminals . | . . . Fabricators . | . . . Repair Stations . | . . . Recycling Units . | . . . Scanalyzers . | . . . Garrison Access . | . . . Data Cores Recovered . | . . . Used . | . . . Hacking Detections . | . . . Full Trace Events . | . . . Feedback Events . | . . . Feedback Blocked . | . . . Robot Schematics Acquired . | . . . Robots Built . | . . . Authchips . | . . . Time . | . . . Total Robot Build Rating . | . . . Part Schematics Acquired . | . . . Parts Built . | . . . Authchips . | . . . Time . | . . . Total Part Build Rating . | . . . Part Studies Acquired . | . . . Parts Repaired . | . . . Time . | . . . Parts Recycled . | . . . Recycled Matter . | . . . Retrieved Matter . | . . . Retrieved Components . | . . . Parts Scanalyzed . | . . . Part Schematics Acquired . | . . . Parts Damaged . | . . . Bothacking | -11 -10 -10 ------------ Run | Yrd Mat Sub Used RIF Installer . | . . . Robots Hacked . | . . . Non-combat . | . . . Combat . | . . . Robot Hacks Applied . | . . . Relay Couplers Released . | . . . Fabnet Peak Effective % . | . . . Robots Rewired . | . . . Allies Hacked . | . . . Hacks Repelled . | . . . Allies | -11 -10 -10 -------- Run | Yrd Mat Sub Total Allies . | . . . Largest Group . | . . . Highest-Rated Group . | . . . Highest-Rated Ally . | . . . Total Orders . | . . . Ally Attacks . | . . . Total Damage . | . . . Kills . | . . . Allies Corrupted . | . . . Allies Melted . | . . . Intel | -11 -10 -10 ------- Run | Yrd Mat Sub Active Infowar (turns) . | . . . Robot Analysis Total . | . . . Derelict Logs Recovered 1 | . . 1 Drone Launches . | . . . Drone Recoveries . | . . . Exploration | -11 -10 -10 ------------- Run | Yrd Mat Sub Turns Passed 2699 | 65 1219 1415 Spaces Moved 1118 | 41 590 487 Core 3 | 3 . . Treads 318 | 27 191 100 Legs . | . . . Wheels 797 | 11 399 387 Hover . | . . . Flight . | . . . Fastest Speed 50 | 50 80 200 Average Speed 209 | 130 175 257 Slowest Speed 480 | 160 200 480 Overloaded Moves . | . . . Propulsion Burnouts . | . . . Robots Hopped . | . . . Potential Cave-ins . | . . . Cave-ins Triggered . | . . . Exploration Rate (%) 37 | 5 79 29 Regions Visited 2 Branch Regions 1 Pre-discovered Areas . | . . . Known Exits Taken . | . . . Unknown Exits Taken 2 | 1 1 . Scrap Searched . | . . . Spaces Dug . | . . . Terrain Destroyed 44 | . . 44 Melee . | . . . Projectile . | . . . AOE 44 | . . 44 Terrain Rammed . | . . . Walls Destroyed . | . . . Machines Disabled . | . . . Actions | -11 -10 -10 --------- Run | Yrd Mat Sub Total 1352 | 50 731 571 Wait 115 | . 94 21 Move 1116 | 40 589 487 Hop . | . . . Pick Up 20 | 4 12 4 Fast Attach 8 | 6 2 . Attach 9 | . 2 7 Detach 2 | . 1 1 Swap 7 | . 2 5 Drop 3 | . 2 1 Fire 69 | . 26 43 Melee 3 | . 1 2 Ram . | . . . Kick . | . . . Crush . | . . . Escape Stasis . | . . . Rewire . | . . . Trap . | . . . Miscellaneous . | . . . Route ------- -11/Scrapyard -10/Materials (discovered 4 exits: [*Mat x2] / [*Min] / [*Sub]) -10/Subcaves (discovered 3 exits: *Mat / *Rec / [Scr]) History --------- Turn | Location | Event 18 | -11/Scrapyard | Discovered new exit (range 15) 66 | -11/Scrapyard | Entered Materials 67 | -10/Materials | Met a group of wandering Federalists 232 | -10/Materials | Discovered new exit (range 11) 314 | -10/Materials | Build established: Mutant 617 | -10/Materials | Discovered new exit (range 5) 699 | -10/Materials | Discovered new exit (range 12) 1261 | -10/Materials | Discovered new exit (range 11) 1285 | -10/Materials | Entered Subcaves 1286 | -10/Subcaves | Continued accompanying wandering Federalists (5) 1286 | -10/Subcaves | Approached by a straggling Scientist 1792 | -10/Subcaves | Core integrity fell below 50% 1806 | -10/Subcaves | Discovered new exit (range 15) 1893 | -10/Subcaves | Identified exit to Recycling 2129 | -10/Subcaves | A swath of the cavern ceiling suddenly collapsed 2168 | -10/Subcaves | Discovered new exit (range 6) 2228 | -10/Subcaves | Lost 3 parts (1n2w) 2241 | -10/Subcaves | Identified exit to Materials 2684 | -10/Subcaves | Core integrity fell below 20% 2700 | -10/Subcaves | Destroyed by 98-AE2(R) with Subdweller Machine Gun Last Messages --------------- 02168_ EXIT=FOUND 02181_ Wheel destroyed. 02185_ VT-XDZ(R) destroyed. 02187_ Subatomizers dissect the Sub. Power Source. 02191_ Assault Rifle destroyed. 02197_ 9N-WXA(R) destroyed. 02202_ Subatomizers dissect the Sub. Power Source. 02204_ Acquired Sub. Optics. 02210_ Acquired Scrap Shield Fragment. 02211_ Acquired 56 matter. 02214_ Subatomizers dissect the Sub. Power Source. 02220_ Acquired Sub. Power Source. 02226_ Acquired 33 matter. 02241_ Subatomizers dissect the Disposable Heat Sink. 02241_ Acquired 44 matter. 02241_ EXIT=IDENTIFIED: MATERIALS 02255_ Subatomizers dissect the Disposable Heat Sink. 02567_ The unstable cave ceiling collapses. 02694_ Lgt. Treads destroyed. 02696_ Ion Engine destroyed. Map ----- +----------------------------------------------------+ | ????????????????????????????????? ##???### | | ????????????????????????????????? ?????# | | ?????????????????????????????????# ????? # | | ????????????????????????????###??# ?????? ## | | ?????????????????????###???## ###? ??????? ## | | ?????????????????????# ##??# ### #??????? ### | | ?????????????????????# #### # ## #??????? ### | | ?????????????????????# # # ##?##### ## | | ????????????????????## # # !&##"# ## | | ???????????????????## % #?# | | ????????????????#### ## < & ##### | | ????????????????# ##### #" ### | | ????????????????## #???## ### ### | | ?????????????????##### #####????## ##### ## | | ?????????????????#### ##????????#### ## | | ?????????????????# #???????????# # # | | ????????????????## #?????????### # # # | | ??????????????### ##?????????# ## # ## | | ??????????????# #?????????## ##### # ## | | ??????????????# # ##?????????# #?# ## | | ??????????????# ####?????#????## ##?# ## | | ??????????????### ##??## ??;##??## ##?## # | | ????????????????## #??######;;#### # #??# ## | | ????????????????#"#####;;;;;;""## #??# ## | | ????????????????##"""#;;;;;# ### # # #??## ## # # | | ?????????????????###""## @##???########???##" #$ # | | ???????????????????#"##; ;R#???????????????## ## # | | ???????????????????#"#;";###????????????????## # # | | ???????????????????#";"##""???????????????????# # | | ???????????????????####??"##???????????????#### | | ?????????????????????????""????????????????#" | | ?????????????????????????# ???????????????# | | ??????????????????????????? ??????????????# | | ??????????????????????????? ??????????????#" % % | | ???????????????????????????? ?????????????#" " " | | ???????????????????????????? ????????????#"""" " | | ????????????????????????????? ???????????#####># | | ?????????????????????????????###???????????????### | | ?????????????????????????????????????????????????? | | ?????????????????????????????????????????????????? | | ?????????????????????????????????????????????????? | | ?????????????????????????????????????????????????? | | ?????????????????????????????????????????????????? | | ?????????????????????????????????????????????????? | | ?????????????????????????????????????????????????? | | ?????????????????????????????????????????????????? | | ?????????????????????????????????????????????????? | | ?????????????????????????????????????????????????? | | ?????????????????????????????????????????????????? | | ?????????????????????????????????????????????????? | +----------------------------------------------------+ Best States ------------- Heat Dissipation 39 Energy Generation 10 Energy Capacity 250 Matter Stores 300 Matter Capacity 300 Sight Range 16 Terrain Scan Density 10 Evasion (%) 44 Recoil Reduction 1 Item Schematics ----------------- None Robot Schematics ------------------ None Fabricated ------------ Nothing Repaired ---------- Nothing Studied --------- None Alien Tech Used ----------------- None Achievements -------------- Strength In Numbers Challenges ------------ None Game ------ Seed GravityEnergyWall Manual? 0 Play Time 00:17:38 Cumulative 98.2 hours Start 2025.11.01 @ 14:31:01 End 2025.11.03 @ 01:29:51 Sessions 2 Manual Loads 0 Difficulty Rogue Special Mode None Game No. 134 Rogue 134 Adventurer 0 Explorer 0 Win Type - Total 1 Types 1/0/0/0/0/0/0/0/0/0 Lore% 29 Gallery% 44 Achievement% 28 Wizard Run 0 Options --------- Layout 0 ASCII 0 Keyboard 0 Movement Mouse Keybinds 0 Fullscreen 1 Font 18/Smallcaps Map View 76x50 Zoom Use 0% Tactical HUD 1 Map Filters NONE Filters NONE Steam 1 RUN: 112567fe-10b9-4417-8a0c-3038cdda15ed